Cogmind - Beta 14 X2 @@@ ROGUE MODE // 2024.07.31 @ 02:05:12 Player: Infomantis Result: Destroyed by P-80 Master with Gamma Rifle Performance ------------- Evolutions (8) 4000 Regions Visited (24) 4800 Robots Destroyed (213) 1065 Value Destroyed (9973) 9973 Prototype IDs (42) 840 Alien Tech Used (1) 200 Bonus (8645) 8645 TOTAL SCORE: 29523 Bonus ------- High Alert Combat Kills 881 Follower Combat Kills 2990 Registered with UFD 300 Met Zhirov 300 Met Warlord at Base 500 MAIN.C Attacked Warlord 500 Warlord Defense Kills 188 Built Enhanced Grunts 300 A7 Reached Mainframe 300 Met R17 at Cetus 500 Met R17 at Research 2000 Friendly Fire -114 Cogmind --------- Core Integrity 0/1450 Matter 154/300 Energy 100/100 System Corruption 10% Temperature Hot (286) Movement Hovering (50) Location -2/Section 7 Parts ------- > --- POWER (2) -------- (None) > --- PROPULSION (5) --- Cooled Gravmag System Electron Diverter > --- UTILITY (13) ----- Advanced Signal Interpreter Core Analyzer Experimental Core Analyzer Experimental Core Analyzer Advanced System Shield > --- WEAPON (3) ------- Centrium Greatsword > --- INVENTORY (5) ---- Advanced Energy Well (500) Phase Armor Potential Cannon Peak State ------------ > --- POWER ------------ Particle Reactor Improved Quantum Reactor > --- PROPULSION ------- Improved Heavy Siege Treads Advanced Heavy Siege Treads Enhanced Biometal Leg > --- UTILITY ---------- Improved Thermal Generator Advanced Cryofiber Web Advanced Heat Sink Advanced Heat Sink High-capacity Storage Unit Advanced Weight Redist. System Advanced Signal Interpreter Advanced Target Analyzer Core Analyzer Experimental Core Analyzer Improved Hacking Suite Advanced Hacking Suite Advanced System Shield > --- WEAPON ----------- Improved Matter Neutralizer Improved Matter Neutralizer Improved Matter Neutralizer > --- INVENTORY -------- Light Antimatter Reactor Micro Antimatter Reactor Improved Heavy Siege Treads Advanced Cryofiber Web Advanced Matter Compressor Advanced Signal Interpreter Experimental Core Analyzer Centrium Medium Armor Plating Phase Armor Experimental Thermal Shield Improved Force Field Improved Remote Force Field Advanced Trap Extractor Subatomic Replicator Improved Matter Neutralizer Precision Grenade Launcher Fusion Bomb Launcher Advanced Datajack [Rating: 174] Favorites ----------- Power Reinforced Deuterium Engine Engine Reinforced Deuterium Engine Power Core Neutrino Core Reactor Light Antimatter Reactor Propulsion Light Treads Treads Light Treads Leg Flexi-carbon Leg Wheel Armored Huge Wheel Hover Unit Backup Propulsion III Flight Unit Field Propulsion Array Utility High-capacity Storage Unit Device Graphene Brace Storage High-capacity Storage Unit Processor Core Analyzer Hackware Hacking Suite Protection Centrium Medium Armor Plating Artifact Phase Armor Weapon Companion Sword Energy Gun Cooled Pulse Rifle Energy Cannon Improved Matter Neutralizer Ballistic Gun Enhanced Autogun Ballistic Cannon Heavy Gauss Cannon Launcher Precision Grenade Launcher Special Weapon CPS Tube Impact Weapon Mace Slashing Weapon Companion Sword Special Melee Weapon Improved Datajack Build | -11 -10 -10 -10 -9 -8 -7 -7 -7 -7 -5 -5 -5 -5 -5 -4 -4 -4 -4 -3 -3 -3 -2 -2 -2 ------- Run | Yrd Mat Min Exi Min Mat Fac Sto Rec Scr Fac Ext Cet Arc Hub Fac Upp Upp War Pro Res Qua Res Tes Sec Slots Evolved 16 | . . . . . 4 2 . . . 4 . . . . 2 . . . . 2 . 2 . . Power 1 | . . . . . . . . . . 1 . . . . . . . . . . . . . . Propulsion 3 | . . . . . 1 . . . . 1 . . . . 1 . . . . . . . . . Utility 11 | . . . . . 2 2 . . . 2 . . . . 1 . . . . 2 . 2 . . Weapon 1 | . . . . . 1 . . . . . . . . . . . . . . . . . . . Parts Attached 423 | 8 8 1 2 5 32 17 12 9 17 29 59 8 7 6 13 10 20 35 16 12 49 32 10 6 Power 56 | 1 . 1 . 1 3 2 . 2 . 7 14 . . 2 2 2 2 4 1 1 5 4 . 2 Engine 18 | 1 . 1 . 1 2 . . 2 . 2 6 . . 1 1 . . 1 . . . . . . Core 21 | . . . . . 1 2 . . . 5 8 . . 1 1 1 . . 1 . 1 . . . Reactor 17 | . . . . . . . . . . . . . . . . 1 2 3 . 1 4 4 . 2 Propulsion 110 | 2 1 . . 2 10 3 3 1 4 10 18 1 1 4 2 2 7 14 1 3 12 6 . 3 Treads 37 | 2 1 . . 2 9 3 3 1 2 3 2 . . . 1 1 3 . . . . 4 . . Leg 52 | . . . . . . . . . . . 11 1 1 4 1 1 3 14 1 3 11 1 . . Wheel 10 | . . . . . . . . . 2 3 5 . . . . . . . . . . . . . Hover 9 | . . . . . 1 . . . . 4 . . . . . . 1 . . . 1 . . 2 Flight 2 | . . . . . . . . . . . . . . . . . . . . . . 1 . 1 Utility 169 | 2 1 . . 1 9 7 4 3 9 10 22 5 4 . 9 4 9 13 10 6 23 12 6 . Device 89 | 1 . . . 1 5 3 2 2 5 1 11 2 2 . 6 2 4 9 8 2 13 8 2 . Storage 14 | 1 1 . . . . . . 1 2 . . . 1 . . . . 1 . . 2 1 4 . Processor 16 | . . . . . . . . . . 4 . . . . 2 1 1 3 1 . 2 2 . . Hackware 10 | . . . . . 1 . . . . 2 2 . . . 1 . 3 . . . . 1 . . Protection 39 | . . . . . 3 4 2 . 2 3 9 3 1 . . 1 1 . 1 4 5 . . . Artifact 1 | . . . . . . . . . . . . . . . . . . . . . 1 . . . Weapon 88 | 3 6 . 2 1 10 5 5 3 4 2 5 2 2 . . 2 2 4 4 2 9 10 4 1 Energy Gun 19 | . . . . . 5 2 3 1 2 . 3 . . . . . . 1 . . 1 . 1 . Energy Cannon 21 | . 2 . . . . . 1 . . . . . 1 . . . . 1 . . 4 9 3 . Ballistic Gun 17 | 3 2 . 2 1 4 1 1 . . . . 1 . . . . 1 . . . 1 . . . Ballistic Cannon 1 | . . . . . . . . . . . . . . . . . . . . . 1 . . . Launcher 9 | . 1 . . . 1 2 . 1 . . . . . . . 1 . 1 . . 1 1 . . Special Weapon 10 | . 1 . . . . . . . 1 2 1 1 . . . . . . 2 1 1 . . . Impact Weapon . | . . . . . . . . . . . . . . . . . . . . . . . . . Slashing Weapon 5 | . . . . . . . . . 1 . . . . . . 1 1 1 . . . . . 1 Piercing Weapon . | . . . . . . . . . . . . . . . . . . . . . . . . . Special Melee Weapon 6 | . . . . . . . . 1 . . 1 . 1 . . . . . 2 1 . . . . Unidentified Prototypes 35 | . . . . . 4 . 2 1 1 1 . 2 2 . . . . 6 2 1 5 2 4 2 Corrupted Parts 2 | . . . . . 1 . . 1 . . . . . . . . . . . . . . . . System Corruption 4 | . . . . . 3 . . 1 . . . . . . . . . . . . . . . . Parts Lost 118 | . . . . . 3 2 2 . . 5 20 . 5 4 3 3 15 1 1 4 21 24 3 2 Power 19 | . . . . . 1 . . . . 1 4 . 1 3 . 1 2 . . . 2 4 . . Propulsion 40 | . . . . . 1 2 . . . . 5 . 2 . 2 1 10 1 . 3 4 7 1 1 Utility 40 | . . . . . . . 1 . . 1 10 . 1 1 . 1 3 . 1 . 9 9 2 1 Weapon 19 | . . . . . 1 . 1 . . 3 1 . 1 . 1 . . . . 1 6 4 . . Highest Loss Streak 15 | . . . . . 1 1 1 . . 2 9 . 5 3 2 3 8 1 1 3 11 15 2 2 To Critical Strikes 1 | . . . . . . . . . . . . . . . . . . . . . . 1 . . Average Slot Usage (%) 85 | . 100 100 74 100 95 95 95 91 82 79 84 99 81 85 78 87 63 80 94 94 95 85 34 32 Engine 4 | . 14 14 14 14 5 . . 6 7 5 3 5 5 5 3 2 . 4 . . . . . . Core 2 | . . . . . 3 7 7 . . 4 5 5 1 . 1 4 . . 4 4 3 . . . Reactor 1 | . . . . . . . . . . . . . . . . 2 3 4 5 4 4 7 . 2 Treads 10 | . 28 28 28 28 25 20 21 23 11 3 . . . . 1 9 4 . . . . 4 . . Leg 6 | . . . . . . . . . . . 8 23 15 19 19 14 2 13 26 22 22 8 . . Wheel 2 | . . . . . . . . . 6 10 8 . . . . . . . . . . . . . Device 15 | . 14 14 14 14 9 21 17 22 21 11 13 28 25 22 20 16 14 7 4 5 12 19 4 1 Storage 6 | . 14 14 14 14 9 7 7 7 8 5 5 5 5 11 7 5 4 2 5 4 4 3 1 . Processor 8 | . . . . . . . . . . 10 7 5 5 5 8 19 20 21 21 19 14 15 17 17 Hackware 6 | . . . . . 7 7 7 7 7 6 5 . . . 2 . 1 15 15 14 13 10 7 4 Protection 3 | . . . . . 8 7 9 . 1 3 8 5 5 5 5 4 4 . . 3 3 . . . Energy Gun 2 | . . . . . 10 7 8 14 1 . . . . . . . . 3 . . . . . . Ballistic Gun 3 | . 18 28 3 28 14 15 12 . . . . . . . . . . . . . 1 . . . Special Weapon 1 | . . . . . . . . . 2 4 2 5 1 . . . . . 1 4 3 . . . Slashing Weapon 2 | . . . . . . . . . 3 5 5 5 5 5 5 5 4 2 5 4 1 . . . Special Melee Weapon 2 | . . . . . . . . 2 7 . 2 5 5 5 3 . . . 3 2 . . . . Naked Turns . | . . . . . . . . . . . . . . . . . . . . . . . . . Heaviest Build 123 | 12 29 30 30 33 49 60 67 69 87 102 98 101 88 81 79 90 90 88 98 116 121 123 6 16 Greatest Support 164 | 40 40 40 40 40 84 76 68 68 76 56 75 75 70 70 65 55 75 121 121 121 136 164 15 20 Greatest Overweight (x) 19 | 1 . . . . 1 1 1 1 2 8 8 1 2 1 1 2 19 3 . 1 . 4 1 1 Average Overweight (x) . | . . . . . . . . . . 1 1 1 1 . . 1 1 . . . . . . . Largest Inventory Capacity 20 | 8 15 15 15 15 15 15 15 20 20 20 20 20 20 20 20 20 20 20 20 20 20 20 5 5 Average Capacity 17 | 7 9 15 15 15 15 15 15 16 20 20 20 20 20 20 20 20 18 12 20 20 20 19 5 5 Most Carried 20 | 6 8 15 15 15 15 15 15 19 20 20 20 20 20 20 20 20 20 20 20 20 20 20 5 5 Average Carried 17 | 3 7 11 14 14 14 14 14 15 19 19 19 19 19 20 19 19 17 11 19 18 19 17 4 5 Final Capacity 20 | 8 15 15 15 15 15 15 15 20 20 20 20 20 20 20 20 20 5 20 20 20 20 5 5 5 Final Carried 20 | 6 8 15 15 15 15 14 15 19 20 20 20 20 20 20 20 19 5 20 20 20 16 4 5 5 Class Distribution -------------------- 39% | Scavenger-Mutant 26% | Commander-Mutant 10% | Mutant 9% | Scavenger-Tank 4% | Hacker-Mutant 3% | Tank Dominant Class ---------------- Mutant | -10/Materials Mutant | -10/Mines Mutant | -10/Exiles Scavenger-Mutant | -9/Mines Tank | -8/Materials Scavenger-Tank | -7/Factory Scavenger-Tank | -7/Storage Scavenger-Tank | -7/Recycling Commander-Mutant | -7/Scraptown Commander-Mutant | -5/Factory Scavenger-Mutant | -5/Extension Scavenger-Mutant | -5/Cetus Scavenger-Mutant | -5/Archives Scavenger-Mutant | -5/Hub_04(d) Scavenger-Mutant | -4/Factory Scavenger-Mutant | -4/Upper Caves Scavenger-Mutant | -4/Upper Caves Scavenger-Mutant | -4/Warlord Scavenger-Mutant | -3/Proximity Caves Scavenger-Mutant | -3/Research Scavenger-Mutant | -3/Quarantine Scavenger-Gunner | -2/Research Hacker-Mutant | -2/Testing Hacker-Mutant | -2/Section 7 Resources | -11 -10 -10 -10 -9 -8 -7 -7 -7 -7 -5 -5 -5 -5 -5 -4 -4 -4 -4 -3 -3 -3 -2 -2 -2 ----------- Run | Yrd Mat Min Exi Min Mat Fac Sto Rec Scr Fac Ext Cet Arc Hub Fac Upp Upp War Pro Res Qua Res Tes Sec Matter Collected 6740 | 340 126 294 . 145 1036 574 234 144 450 321 651 119 70 60 71 124 217 358 186 118 608 494 . . Remotely . | . . . . . . . . . . . . . . . . . . . . . . . . . Salvage Created 10518 | 134 178 191 . . 2172 1143 505 286 . 883 1031 . 209 123 71 243 415 147 542 106 692 1447 . . Parts 553 | 16 16 20 . . 118 62 20 10 . 51 42 . 17 5 3 19 15 8 35 8 33 55 . . Haulers Intercepted 4 | . . . . . 3 . . . . . . . . . . . . . . . . 1 . . Recyclers Shooed 6 | . . 1 . . 2 1 . 1 . . 1 . . . . . . . . . . . . . Parts Field Recycled . | . . . . . . . . . . . . . . . . . . . . . . . . . Retrieved Matter . | . . . . . . . . . . . . . . . . . . . . . . . . . Parts Self-Destructed 65 | . . . . . . . . . . . . . . . . 17 19 . 29 . . . . . Prevented . | . . . . . . . . . . . . . . . . . . . . . . . . . Kills | -11 -10 -10 -10 -9 -8 -7 -7 -7 -7 -5 -5 -5 -5 -5 -4 -4 -4 -4 -3 -3 -3 -2 -2 -2 ------- Run | Yrd Mat Min Exi Min Mat Fac Sto Rec Scr Fac Ext Cet Arc Hub Fac Upp Upp War Pro Res Qua Res Tes Sec Combat Hostiles Destroyed 169 | . 6 8 . . 35 19 8 2 . 10 16 . . 2 1 6 6 2 7 3 15 23 . . Melee 57 | . . . . . . . . . . 10 16 . . 2 1 6 6 1 7 3 5 . . . Guns 64 | . . 8 . . 31 16 7 1 . . . . . . . . . . . . 1 . . . Cannons 27 | . . . . . . . . . . . . . . . . . . . . . 8 19 . . AOE 18 | . 6 . . . 4 3 1 . . . . . . . . . . 1 . . 1 2 . . Classes Destroyed 19 | 2 2 1 . . 9 . . 1 . . 1 . . . . . . 1 2 . . . . . Worker 7 | . . . . . 3 1 . . . 2 . . . . . . . . . . . 1 . . Builder 7 | . 1 . . . 2 4 . . . . . . . . . . . . . . . . . . Tunneler 8 | 5 1 1 . . . . . . . . . . . . . . . . . . . 1 . . Hauler 4 | . . . . . 3 . . . . . . . . . . . . . . . . 1 . . Recycler 9 | 1 . . . . 2 . . 2 . 3 1 . . . . . . . . . . . . . Minesweeper 1 | . . . . . . . . . . . . . . . . . . . 1 . . . . . Mechanic 2 | . . . . . . . . . . . . . . . . . . 1 . . . 1 . . Operator 4 | . . . . . 1 . . . . . 2 . . . . . . . . . . 1 . . Drone 2 | . . . . . . . . . . . . . . . . . . . 2 . . . . . Watcher 5 | . . . . . 2 . . . . 2 . . . 1 . . . . . . . . . . Swarmer 28 | . . 6 . . 2 . . . . 5 2 . . 1 . 4 . 1 . 3 . 4 . . Grunt 81 | . 6 2 . . 23 10 6 . . 2 9 . . 1 . . 3 1 2 . 5 11 . . Brawler 4 | . . . . . 1 2 . . . . . . . . . . . . . . . 1 . . Duelist 6 | . . . . . 2 2 . . . . 1 . . . . . 1 . . . . . . . Sentry 15 | . . . . . 5 3 2 1 . . 1 . . . 1 . 1 . . . . 1 . . Demolisher 2 | . . . . . . . . . . . 2 . . . . . . . . . . . . . Hunter 10 | . . . . . 1 2 . . . . . . . . . 2 . . . . 3 2 . . Programmer 15 | . . . . . . . . 1 . 3 . . . . . . 1 . 3 . 3 4 . . Heavy 1 | . . . . . 1 . . . . . . . . . . . . . . . . . . . Quarantine Guard 4 | . . . . . . . . . . . . . . . . . . . . . 4 . . . Butcher 1 | . . . . . . . . . . . 1 . . . . . . . . . . . . . Best Kill Streak 8 | 4 8 3 . . 7 8 3 2 . 4 2 . . 2 1 4 2 1 2 3 5 6 . . Combat Bots Only 6 | . 6 3 . . 5 4 3 1 . 3 2 . . 1 1 4 2 1 2 3 5 4 . . Max Kills in Single Turn 4 | 1 3 1 . . 3 2 1 1 . 1 1 . . 1 1 1 1 1 1 1 1 4 . . Gunslinging 1 | . . . . . 1 1 . . . . . . . . . . . . . . . . . . Exploded 2 | . 2 . . . 2 1 1 . . . . . . . . . . 1 . . 1 2 . . Melee 1 | . . . . . . . . . . 1 1 . . 1 1 1 1 1 1 1 1 . . . Uniques/NPCs Destroyed . | . . . . . . . . . . . . . . . . . . . . . . . . . Combat | -11 -10 -10 -10 -9 -8 -7 -7 -7 -7 -5 -5 -5 -5 -5 -4 -4 -4 -4 -3 -3 -3 -2 -2 -2 -------- Run | Yrd Mat Min Exi Min Mat Fac Sto Rec Scr Fac Ext Cet Arc Hub Fac Upp Upp War Pro Res Qua Res Tes Sec Hostile Shots Fired 1809 | . 16 42 . 4 125 102 73 66 . 80 203 7 . 47 11 56 124 110 34 63 249 332 29 36 Missed 591 | . 5 10 . 1 49 43 26 24 . 17 49 2 . 7 3 10 27 61 9 20 89 117 9 13 Damage Taken 27406 | . 120 321 . 42 1573 1024 618 224 . 1258 3303 323 1001 711 223 695 2632 1239 576 1137 4372 5058 475 481 Core 4247 | . 10 57 . 12 235 75 86 21 . 120 390 15 15 20 7 90 479 447 57 143 514 868 366 220 Absorbed by Shields 578 | . . . . . . . . 67 . . 369 126 . . . . . . . . . . . 16 Redirected to Shielding 54 | . . . . . . . . . . 9 45 . . . . . . . . . . . . . Ignored by Resistances 662 | . . . . . 88 5 32 54 . 42 215 . . . . . . . . . 77 . 83 66 Regen/Repaired (Parts) 993 | . . . . . . . 456 . 45 338 . . . . . . . . . . 154 . . . Core Remaining (%) 56 | 100 . . . 68 57 . . . 74 . . . . 44 . . . . 6 . 49 . . . Volleys Fired 344 | 15 10 21 . 2 93 55 21 6 . . 7 . . . . . 2 7 . . 47 56 2 . Largest 3 | 2 2 2 . 2 3 3 3 3 . . 1 . . . . . 1 1 . . 3 3 1 . Hottest 339 | 40 100 40 . 40 125 100 100 60 . . 7 . . . . . 35 40 . . 214 339 200 . Shots Fired 812 | 30 11 43 . 5 244 143 59 19 . . 7 . . . . . 2 7 . . 86 154 2 . Gun 564 | 30 2 43 . 5 239 140 59 19 . . . . . . . . 2 6 . . 19 . . . Cannon 217 | . 2 . . . . . . . . . . . . . . . . . . . 61 152 2 . Launcher 22 | . 6 . . . 5 3 . . . . . . . . . . . 1 . . 5 2 . . Special 9 | . 1 . . . . . . . . . 7 . . . . . . . . . 1 . . . Kinetic 402 | 30 2 43 . 5 143 96 42 . . . . . . . . . 2 . . . 39 . . . Thermal 186 | . 3 . . . . . . 19 . . . . . . . . . 6 . . 19 137 2 . Explosive 22 | . 6 . . . 5 3 . . . . . . . . . . . 1 . . 5 2 . . Electromagnetic 172 | . . . . . 96 44 17 . . . . . . . . . . . . . . 15 . . Entropic 22 | . . . . . . . . . . . . . . . . . . . . . 22 . . . Robot Hit Streak 19 | 7 1 2 . 5 9 19 15 9 . . 5 . . . . . 1 1 . . 15 6 . . Robot Miss Streak 5 | 3 1 5 . . 5 3 1 2 . . 1 . . . . . 1 2 . . 4 4 . . Penetration Max . | . . . . . . . . . . . . . . . . . . . . . . . . . Secondary Targets 14 | . . 1 . . 6 4 3 . . . . . . . . . . . . . . . . . Max Gunslinging Chain 1 | . . 1 . . 1 1 1 . . . . . . . . . . . . . . . . . Shots Hit Robots 792 | 18 1 21 . 4 157 91 50 38 5 39 98 3 9 16 6 11 36 7 18 12 76 76 . . Core Hits 419 | 10 12 12 . 1 96 64 26 5 . 20 25 . 5 3 3 8 11 16 13 6 35 48 . . Critical Kills 5 | . . . . . . 1 . . . . . . . . . . 1 . . . 1 2 . . Critical Parts Destroyed 2 | . . . . . . . . . . . . . . . . . 1 . . . 1 . . . Critical Strikes 22 | . . . . . . 1 . 1 . . 2 . . . . . 6 . . . 10 2 . . Burn 1 | . . . . . . . . 1 . . . . . . . . . . . . . . . . Meltdown 2 | . . . . . . . . . . . . . . . . . . . . . . 2 . . Destroy 5 | . . . . . . 1 . . . . . . . . . . 2 . . . 2 . . . Blast 1 | . . . . . . . . . . . . . . . . . . . . . 1 . . . Sunder 7 | . . . . . . . . . . . . . . . . . . . . . 7 . . . Melee Attacks 385 | . . . . . . . . 25 5 52 119 4 16 21 7 13 47 7 19 17 33 . . . Impact . | . . . . . . . . . . . . . . . . . . . . . . . . . Slashing 334 | . . . . . . . . . . 52 102 4 16 19 6 13 47 7 19 17 32 . . . Piercing . | . . . . . . . . . . . . . . . . . . . . . . . . . Sneak Attacks 68 | . . . . . . . . 24 5 8 24 . . 1 1 . . . 2 . 3 . . . Combat Hostiles 16 | . . . . . . . . 8 . 1 1 . . 1 1 . . . 1 . 3 . . . Follow-up Attacks 7 | . . . . . . . . . . . . . . . . . 4 . 1 2 . . . . Damage Inflicted 26385 | 215 337 298 . 51 3490 2418 1112 332 . 1829 3403 113 970 537 191 438 1338 805 979 477 3245 3807 . . Guns 6306 | 215 15 281 . 51 2752 1559 957 318 . . . . . . . . 54 . . . 104 . . . Cannons 5244 | . . . . . . . . . . . . . . . . . . . . . 2046 3198 . . Explosions 3535 | . 322 . . . 728 859 148 . . . . . . . . . . 576 . . 293 609 . . Melee 11247 | . . . . . . . . . . 1829 3398 113 970 537 191 438 1284 229 979 477 802 . . . Ramming 53 | . . 17 . . 10 . 7 14 . . 5 . . . . . . . . . . . . . Kinetic 3987 | 215 15 281 . 51 1224 919 559 . . . . . . . . . 54 . . . 669 . . . Thermal 4668 | . . . . . 254 518 148 318 . . . . . . . . . . . . 505 2925 . . Explosive 2493 | . 322 . . . 474 219 . . . . . . . . . . . 576 . . 293 609 . . Electromagnetic 2961 | . . . . . 1528 762 398 . . . . . . . . . . . . . . 273 . . Impact . | . . . . . . . . . . . . . . . . . . . . . . . . . Slashing 11247 | . . . . . . . . . . 1829 3398 113 970 537 191 438 1284 229 979 477 802 . . . Piercing . | . . . . . . . . . . . . . . . . . . . . . . . . . Entropic 976 | . . . . . . . . . . . . . . . . . . . . . 976 . . . Highest Corruption 10 | . 4 4 4 4 4 . . 4 . 6 7 6 6 . . . 1 1 7 2 9 5 10 10 Average Corruption 4 | . 2 4 4 4 3 . . 1 . 4 6 6 4 . . . 1 1 3 1 7 4 7 10 Corruption Purged 7 | . . . . . . . . . . . 1 . 6 . . . . . . . . . . . Corruption Blocked . | . . . . . . . . . . . . . . . . . . . . . . . . . Effects 245 | . 2 26 7 13 17 . . 14 . 19 49 16 3 . . . 13 . 14 2 41 3 4 2 Message Errors 54 | . 1 8 2 . 5 . . 1 . 3 10 7 . . . . 4 . 3 . 7 1 2 . Matter Fused 57 | . . 6 . 6 1 . . 5 . 6 10 4 . . . . 3 . 4 2 7 2 1 . Heat Flow Errors 31 | . . 4 2 1 5 . . 1 . 3 6 1 1 . . . 1 . 3 . 2 . . 1 Energy Discharges 31 | . . 4 1 1 1 . . 3 . . 6 4 . . . . 3 . 1 . 7 . . . Parts Rejected 8 | . . . . . 1 . . . . . 3 . . . . . . . . . 4 . . . Parts Fused 1 | . . . . . . . . . . . 1 . . . . . . . . . . . . . Data Loss (minor) 34 | . 1 2 2 3 1 . . 1 . 6 9 . . . . . 1 . 2 . 6 . . . Data Loss (major) 15 | . . 1 . 1 1 . . 1 . 1 4 . . . . . 1 . 1 . 4 . . . Misfires 5 | . . 1 . 1 . . . 1 . . . . . . . . . . . . 2 . . . Alerts 4 | . . . . . . . . 1 . . . . 2 . . . . . . . 1 . . . Misdirections 2 | . . . . . . . . . . . . . . . . . . . . . . . 1 1 Weapon Failures 3 | . . . . . 2 . . . . . . . . . . . . . . . 1 . . . Overload Shots . | . . . . . . . . . . . . . . . . . . . . . . . . . Overflow Damage 1140 | . 2 . . . 12 109 . . . 186 165 . 260 66 . . 51 . 99 10 37 143 . . Projectiles 146 | . . . . . . . . . . . . . . . . . . . . . 3 143 . . Explosions 131 | . 2 . . . 12 109 . . . . . . . . . . . . . . 8 . . . Melee 863 | . . . . . . . . . . 186 165 . 260 66 . . 51 . 99 10 26 . . . Knockbacks 1 | . . . . . . . . 1 . . . . . . . . . . . . . . . . Impact 1 | . . . . . . . . 1 . . . . . . . . . . . . . . . . Kinetic . | . . . . . . . . . . . . . . . . . . . . . . . . . Secondary . | . . . . . . . . . . . . . . . . . . . . . . . . . Self-Inflicted Damage 659 | . . . . . 180 256 41 . . . . . . . . . . . . . 50 132 . . Shots 16 | . . . . . 3 5 1 . . . . . . . . . . . . . 5 2 . . Rammed 5 | . . 2 . . . . 1 2 . . . . . . . . . . . . . . . . Targets Rammed 9 | . . 3 . . 2 . 1 2 . . 1 . . . . . . . . . . . . . Kicked 1 | . . . . . . . . . . . 1 . . . . . . . . . . . . . Crushed 3 | . . 1 . . 2 . . . . . . . . . . . . . . . . . . . Highest Temperature 377 | . 40 281 124 118 377 24 41 178 . 252 217 180 69 . . . 95 32 288 22 196 141 51 70 Average Temperature 75 | . 12 106 62 57 65 7 15 107 . 107 83 102 39 . . . 52 19 123 6 84 62 22 48 Received Heat Transfer 4813 | . 66 75 . 36 567 369 282 46 . 156 790 20 . 126 36 . 300 242 21 168 126 1011 18 358 Siege Activations . | . . . . . . . . . . . . . . . . . . . . . . . . . Robots Corrupted . | . . . . . . . . . . . . . . . . . . . . . . . . . Combat Hostiles . | . . . . . . . . . . . . . . . . . . . . . . . . . Parts Fried 11 | . . . . . 7 3 . . . . . . . . . . . . . . . 1 . . Impact Corruptions . | . . . . . . . . . . . . . . . . . . . . . . . . . Robots Melted 3 | . . . . . . . . 1 . . . . . . . . . . . . . 2 . . Combat Hostiles 3 | . . . . . . . . 1 . . . . . . . . . . . . . 2 . . Parts Melted 3 | . . . . . . . . 2 . . . . . . . . . 1 . . . . . . Heat Transferred 4624 | . . . . . 300 400 150 666 . . . . . . . . . . . . 481 2627 . . Parts Sabotaged . | . . . . . . . . . . . . . . . . . . . . . . . . . Parts Stolen . | . . . . . . . . . . . . . . . . . . . . . . . . . Parts Stripped . | . . . . . . . . . . . . . . . . . . . . . . . . . Power Chain Reactions 13 | . . . . . 5 5 3 . . . . . . . . . . . . . . . . . Alert | -11 -10 -10 -10 -9 -8 -7 -7 -7 -7 -5 -5 -5 -5 -5 -4 -4 -4 -4 -3 -3 -3 -2 -2 -2 ------- Run | Yrd Mat Min Exi Min Mat Fac Sto Rec Scr Fac Ext Cet Arc Hub Fac Upp Upp War Pro Res Qua Res Tes Sec Peak Influence 1049 | 30 300 244 . 15 706 939 671 302 . 469 1049 841 755 331 153 . . . . 91 245 569 352 250 Initial 544 | . 19 39 . . . 320 415 183 . . 229 544 256 191 153 . . . . . 19 29 197 195 Average 276 | 16 124 70 . 5 367 511 568 75 . 228 550 690 561 237 138 . . . . 27 121 221 280 205 Maximum Alert Level 3 | . 1 1 . . 3 3 2 1 . 2 3 3 3 1 . . . . . . 1 2 1 1 Low Security (%) 47 | 100 72 93 . 100 17 . . 80 . 52 . . . 34 100 . . . . 100 78 63 7 27 Level 1 21 | . 27 6 . . 40 37 . 19 . 30 17 . 27 65 . . . . . . 21 10 92 72 Level 2 25 | . . . . . 41 51 100 . . 17 62 73 31 . . . . . . . . 26 . . Level 3 5 | . . . . . . 11 . . . . 20 26 41 . . . . . . . . . . . Level 4 . | . . . . . . . . . . . . . . . . . . . . . . . . . Level 5 . | . . . . . . . . . . . . . . . . . . . . . . . . . High Security . | . . . . . . . . . . . . . . . . . . . . . . . . . Max Security . | . . . . . . . . . . . . . . . . . . . . . . . . . Squads Dispatched 46 | . 5 . . . 6 5 3 . . 2 5 . . 3 1 . . . . 3 4 7 1 1 Investigation 15 | . 3 . . . 3 2 1 . . . 2 . . . . . . . . 1 3 . . . Extermination 8 | . . . . . . 1 . . . 2 . . . . 1 . . . . . 1 3 . . Reinforcement 14 | . 2 . . . 1 1 . . . . 1 . . 2 . . . . . 2 . 3 1 1 Assault 7 | . . . . . 1 1 2 . . . 2 . . . . . . . . . . 1 . . Garrison 2 | . . . . . 1 . . . . . . . . 1 . . . . . . . . . . Intercept . | . . . . . . . . . . . . . . . . . . . . . . . . . Searches Triggered . | . . . . . . . . . . . . . . . . . . . . . . . . . Construction Impeded . | . . . . . . . . . . . . . . . . . . . . . . . . . Haulers Reinforced 1 | . . . . . . . . . . . . . . . . . . . . 1 . . . . Active Scanning Responses . | . . . . . . . . . . . . . . . . . . . . . . . . . Cargo Convoy Interrupts . | . . . . . . . . . . . . . . . . . . . . . . . . . Stealth | -11 -10 -10 -10 -9 -8 -7 -7 -7 -7 -5 -5 -5 -5 -5 -4 -4 -4 -4 -3 -3 -3 -2 -2 -2 --------- Run | Yrd Mat Min Exi Min Mat Fac Sto Rec Scr Fac Ext Cet Arc Hub Fac Upp Upp War Pro Res Qua Res Tes Sec Distress Signals 30 | . 1 . . 1 5 2 . . . 3 2 2 2 1 1 . . 1 . 2 2 2 1 2 Communications Jammed . | . . . . . . . . . . . . . . . . . . . . . . . . . Distress Signals . | . . . . . . . . . . . . . . . . . . . . . . . . . Times Spotted 468 | . 8 11 . 1 53 25 14 4 . 26 64 11 11 11 4 10 10 87 6 22 25 45 10 10 Peak Tracking Total 16 | . 6 3 . 1 6 5 4 2 . 5 8 5 9 4 2 4 2 13 2 7 7 16 8 9 Tactical Retreats 34 | . . 1 . . 3 4 . . . 1 4 1 . 2 . 2 2 6 . 1 2 . 3 2 Traps | -11 -10 -10 -10 -9 -8 -7 -7 -7 -7 -5 -5 -5 -5 -5 -4 -4 -4 -4 -3 -3 -3 -2 -2 -2 ------- Run | Yrd Mat Min Exi Min Mat Fac Sto Rec Scr Fac Ext Cet Arc Hub Fac Upp Upp War Pro Res Qua Res Tes Sec Traps Triggered 23 | . 3 . . . 2 3 . . . 3 6 . . . . . . . . 1 3 1 . 1 Indirectly . | . . . . . . . . . . . . . . . . . . . . . . . . . Trap Hack Attempts . | . . . . . . . . . . . . . . . . . . . . . . . . . Triggered . | . . . . . . . . . . . . . . . . . . . . . . . . . Disarmed 1 | . . . . . . . 1 . . . . . . . . . . . . . . . . . Reprogrammed . | . . . . . . . . . . . . . . . . . . . . . . . . . Reused . | . . . . . . . . . . . . . . . . . . . . . . . . . Traps Extracted . | . . . . . . . . . . . . . . . . . . . . . . . . . Installed . | . . . . . . . . . . . . . . . . . . . . . . . . . Triggered 17 | . . 1 . . . . . . . . . . . . . . . 13 3 . . . . . Most Traps Carried 3 | . . 3 3 3 3 . . . 1 1 1 1 1 1 1 1 1 . 2 2 2 2 . . Machines | -11 -10 -10 -10 -9 -8 -7 -7 -7 -7 -5 -5 -5 -5 -5 -4 -4 -4 -4 -3 -3 -3 -2 -2 -2 ---------- Run | Yrd Mat Min Exi Min Mat Fac Sto Rec Scr Fac Ext Cet Arc Hub Fac Upp Upp War Pro Res Qua Res Tes Sec Machines Disabled 44 | . 1 1 . . 3 19 1 . . 2 1 2 1 . . . . 1 . . 7 2 3 . Max in Single Turn 11 | . 1 1 . . 2 11 1 . . . . 1 1 . . . . . . . 1 1 2 . Garrison Access 3 | . . . . . 1 . . . . 1 . . . . . . . . . 1 . . . . Machines Repaired . | . . . . . . . . . . . . . . . . . . . . . . . . . Machines Dismantled 1 | . . . . . . . . . . . . 1 . . . . . . . . . . . . Machines Sabotaged . | . . . . . . . . . . . . . . . . . . . . . . . . . Overloaded Fab Kills . | . . . . . . . . . . . . . . . . . . . . . . . . . Hacking | -11 -10 -10 -10 -9 -8 -7 -7 -7 -7 -5 -5 -5 -5 -5 -4 -4 -4 -4 -3 -3 -3 -2 -2 -2 --------- Run | Yrd Mat Min Exi Min Mat Fac Sto Rec Scr Fac Ext Cet Arc Hub Fac Upp Upp War Pro Res Qua Res Tes Sec Machines Accessed 65 | . 6 . 1 1 10 1 4 9 3 6 13 1 . . . . . 1 . 3 4 . 1 1 Terminals 44 | . 4 . . . 7 1 3 5 . 4 12 1 . . . . . . . 3 3 . . 1 Fabricators . | . . . . . . . . . . . . . . . . . . . . . . . . . Repair Stations 3 | . . . . . . . 1 . . 1 . . . . . . . . . . 1 . . . Recycling Units 8 | . 2 . . . 1 . . 4 . . 1 . . . . . . . . . . . . . Scanalyzers 2 | . . . . . 1 . . . . . . . . . . . . . . . . . 1 . Garrison Access 2 | . . . . . 1 . . . . 1 . . . . . . . . . . . . . . Total Hacks 163 | . 19 . 1 1 36 3 13 20 6 11 26 1 . . . . . 1 . 9 12 . 2 2 Successful 93 | . 6 . 1 1 25 2 9 11 6 5 14 . . . . . . 1 . 4 7 . 1 . Failed 69 | . 13 . . . 10 1 4 9 . 6 12 1 . . . . . . . 5 5 . 1 2 Catastrophic 14 | . 1 . . . 3 . . 1 . 2 2 1 . . . . . . . 1 2 . . 1 Database Lockouts 1 | . . . . . 1 . . . . . . . . . . . . . . . . . . . Manual 89 | . 13 . . . 25 . 7 15 . 5 13 1 . . . . . . . 4 2 . 2 2 Terminals 119 | . 13 . . . 24 3 9 16 . 7 25 1 . . . . . . . 9 10 . . 2 Fabricators . | . . . . . . . . . . . . . . . . . . . . . . . . . Repair Stations 9 | . . . . . . . 4 . . 3 . . . . . . . . . . 2 . . . Recycling Units 13 | . 6 . . . 2 . . 4 . . 1 . . . . . . . . . . . . . Scanalyzers 11 | . . . . . 9 . . . . . . . . . . . . . . . . . 2 . Garrison Access 2 | . . . . . 1 . . . . 1 . . . . . . . . . . . . . . Terminal Hacks 34 | . 2 . 1 1 4 2 3 1 6 1 6 . . . . . . 1 . 2 4 . . . Record 5 | . . . 1 . . . . . 4 . . . . . . . . . . . . . . . Robot Analysis 3 | . . . . . . . 1 . . . . . . . . . . . . . 2 . . . Prototype ID Bank 1 | . . . . . 1 . . . . . . . . . . . . . . . . . . . Open Door 11 | . . . . 1 . . 1 . 1 1 6 . . . . . . 1 . . . . . . Branch Access Points 2 | . . . . . 1 . . . . . . . . . . . . . . 1 . . . . Terminal Index 3 | . 1 . . . 1 . . . . . . . . . . . . . . . 1 . . . Fabricator Index 1 | . . . . . . 1 . . . . . . . . . . . . . . . . . . Alert Level 1 | . . . . . . . . . . . . . . . . . . . . 1 . . . . Unreport Threat 2 | . . . . . . . . 1 . . . . . . . . . . . . 1 . . . Locate Traps 1 | . . . . . . 1 . . . . . . . . . . . . . . . . . . Disarm Traps 1 | . . . . . . . 1 . . . . . . . . . . . . . . . . . Registered Components 1 | . 1 . . . . . . . . . . . . . . . . . . . . . . . Zone Layout 1 | . . . . . 1 . . . . . . . . . . . . . . . . . . . Derelict Proto ID Bank 1 | . . . . . . . . . 1 . . . . . . . . . . . . . . . Fabricator Hacks . | . . . . . . . . . . . . . . . . . . . . . . . . . Repair Station Hacks 8 | . . . . . . . 4 . . 2 . . . . . . . . . . 2 . . . Scan Component 4 | . . . . . . . 2 . . 1 . . . . . . . . . . 1 . . . Repair 4 | . . . . . . . 2 . . 1 . . . . . . . . . . 1 . . . Recycling Unit Hacks . | . . . . . . . . . . . . . . . . . . . . . . . . . Scanalyzer 9 | . . . . . 9 . . . . . . . . . . . . . . . . . . . Insert Component 4 | . . . . . 4 . . . . . . . . . . . . . . . . . . . Analyze 5 | . . . . . 5 . . . . . . . . . . . . . . . . . . . Garrison Access Hacks 2 | . . . . . 1 . . . . 1 . . . . . . . . . . . . . . Seal Access 2 | . . . . . 1 . . . . 1 . . . . . . . . . . . . . . Unauthorized Hacks 40 | . 4 . . . 11 . 2 10 . 1 8 . . . . . . . . 2 1 . 1 . Terminals 31 | . 2 . . . 10 . 2 6 . 1 7 . . . . . . . . 2 1 . . . Botnet 11 | . . . . . 3 . 1 2 . 1 2 . . . . . . . . 1 1 . . . Disrupt 1 | . . . . . 1 . . . . . . . . . . . . . . . . . . . Operators 1 | . . . . . 1 . . . . . . . . . . . . . . . . . . . Skim 18 | . 2 . . . 5 . 1 4 . . 5 . . . . . . . . 1 . . . . Fabricators . | . . . . . . . . . . . . . . . . . . . . . . . . . Repair Stations 1 | . . . . . . . . . . . 1 . . . . . . . . . . . . . Recycling Units 7 | . 2 . . . 1 . . 4 . . . . . . . . . . . . . . . . Tunnel 7 | . 2 . . . 1 . . 4 . . . . . . . . . . . . . . . . Scrapoids 1 | . . . . . . . . . . . 1 . . . . . . . . . . . . . Scanalyzers 1 | . . . . . . . . . . . . . . . . . . . . . . . 1 . Researchers 1 | . . . . . . . . . . . . . . . . . . . . . . . 1 . Garrison Access . | . . . . . . . . . . . . . . . . . . . . . . . . . Data Cores Recovered 2 | . . . . . 1 . . . . . 1 . . . . . . . . . . . . . Used 1 | . . . . . 1 . . . . . . . . . . . . . . . . . . . Hacking Detections 39 | . 4 . . . 5 1 4 5 . 4 8 1 . . . . . . . 3 3 . . 1 Full Trace Events 5 | . 1 . . . 1 . 1 1 . . 1 . . . . . . . . . . . . . Feedback Events 2 | . . . . . . . . 1 . . 1 . . . . . . . . . . . . . Corruption 2 | . . . . . . . . 1 . . 1 . . . . . . . . . . . . . Feedback Blocked . | . . . . . . . . . . . . . . . . . . . . . . . . . Robot Schematics Acquired . | . . . . . . . . . . . . . . . . . . . . . . . . . Robots Built . | . . . . . . . . . . . . . . . . . . . . . . . . . Authchips . | . . . . . . . . . . . . . . . . . . . . . . . . . Time . | . . . . . . . . . . . . . . . . . . . . . . . . . Total Robot Build Rating . | . . . . . . . . . . . . . . . . . . . . . . . . . Part Schematics Acquired 4 | . . . . . 4 . . . . . . . . . . . . . . . . . . . Parts Built . | . . . . . . . . . . . . . . . . . . . . . . . . . Authchips . | . . . . . . . . . . . . . . . . . . . . . . . . . Time . | . . . . . . . . . . . . . . . . . . . . . . . . . Total Part Build Rating . | . . . . . . . . . . . . . . . . . . . . . . . . . Parts Repaired 4 | . . . . . . . 2 . . 1 . . . . . . . . . . 1 . . . Time 154 | . . . . . . . 82 . . 44 . . . . . . . . . . 28 . . . Parts Recycled . | . . . . . . . . . . . . . . . . . . . . . . . . . Recycled Matter . | . . . . . . . . . . . . . . . . . . . . . . . . . Retrieved Matter . | . . . . . . . . . . . . . . . . . . . . . . . . . Retrieved Components . | . . . . . . . . . . . . . . . . . . . . . . . . . Parts Scanalyzed 4 | . . . . . 4 . . . . . . . . . . . . . . . . . . . Part Schematics Acquired 4 | . . . . . 4 . . . . . . . . . . . . . . . . . . . Parts Damaged . | . . . . . . . . . . . . . . . . . . . . . . . . . Bothacking | -11 -10 -10 -10 -9 -8 -7 -7 -7 -7 -5 -5 -5 -5 -5 -4 -4 -4 -4 -3 -3 -3 -2 -2 -2 ------------ Run | Yrd Mat Min Exi Min Mat Fac Sto Rec Scr Fac Ext Cet Arc Hub Fac Upp Upp War Pro Res Qua Res Tes Sec Used RIF Installer . | . . . . . . . . . . . . . . . . . . . . . . . . . Robots Hacked 5 | . . . . . . . . . 5 . . . . . . . . . . . . . . . Non-combat 1 | . . . . . . . . . 1 . . . . . . . . . . . . . . . Combat 4 | . . . . . . . . . 4 . . . . . . . . . . . . . . . Robot Hacks Applied 5 | . . . . . . . . . 5 . . . . . . . . . . . . . . . parse_system 5 | . . . . . . . . . 5 . . . . . . . . . . . . . . . Relay Couplers Released 4 | . . . . . 1 . . . . . . . . . . . . . . 3 . . . . Machine Destruction 4 | . . . . . 1 . . . . . . . . . . . . . . 3 . . . . Fabnet Peak Effective % . | . . . . . . . . . . . . . . . . . . . . . . . . . Robots Rewired 34 | . . . . . . . . 12 . . 14 . . 1 1 . . 5 . . 1 . . . Allies Hacked 2 | . . . . . . . . . . 2 . . . . . . . . . . . . . . Hacks Repelled . | . . . . . . . . . . . . . . . . . . . . . . . . . Allies | -11 -10 -10 -10 -9 -8 -7 -7 -7 -7 -5 -5 -5 -5 -5 -4 -4 -4 -4 -3 -3 -3 -2 -2 -2 -------- Run | Yrd Mat Min Exi Min Mat Fac Sto Rec Scr Fac Ext Cet Arc Hub Fac Upp Upp War Pro Res Qua Res Tes Sec Total Allies 57 | . . . . . . . 2 12 1 . 29 5 . 1 1 . . 5 . . 1 . . . Largest Group 21 | . . . . . . . 2 12 12 12 21 8 8 2 1 1 . 5 . . 1 . . . Highest-Rated Group 889 | . . . . . . . 62 151 236 236 889 765 765 89 49 49 . 272 . . 56 . . . Highest-Rated Ally 159 | . . . . . . . 31 31 93 93 159 159 159 67 49 49 . 68 . . 56 . . . Total Orders 5 | . . . . . . . 1 . 2 . . . . . . . 2 . . . . . . . STAY 1 | . . . . . . . . . 1 . . . . . . . . . . . . . . . FOLLOW 1 | . . . . . . . . . 1 . . . . . . . . . . . . . . . EXPLORE 2 | . . . . . . . . . . . . . . . . . 2 . . . . . . . RETURN 1 | . . . . . . . 1 . . . . . . . . . . . . . . . . . Ally Attacks 537 | . . . . . . . 2 15 . 48 295 71 36 17 7 4 12 24 . . 6 . . . Total Damage 14108 | . . . . . . . . 296 . 1851 6091 2299 1844 329 281 . . 994 . . 123 . . . Kills 76 | . . . . . . . . 1 . 17 29 11 12 1 . . . 5 . . . . . . Allies Corrupted . | . . . . . . . . . . . . . . . . . . . . . . . . . Allies Melted 2 | . . . . . . . . . . . . . . . . . . 2 . . . . . . Intel | -11 -10 -10 -10 -9 -8 -7 -7 -7 -7 -5 -5 -5 -5 -5 -4 -4 -4 -4 -3 -3 -3 -2 -2 -2 ------- Run | Yrd Mat Min Exi Min Mat Fac Sto Rec Scr Fac Ext Cet Arc Hub Fac Upp Upp War Pro Res Qua Res Tes Sec Robot Analysis Total 3 | . . . . . . . 1 . . . . . . . . . . . . . 2 . . . Derelict Logs Recovered 8 | . . 1 . 1 . . . . . . . . . . . 3 3 . . . . . . . Drone Launches 17 | . . . . . . . 3 . . . . . . . . . 14 . . . . . . . Drone Recoveries 1 | . . . . . . . 1 . . . . . . . . . . . . . . . . . Exploration | -11 -10 -10 -10 -9 -8 -7 -7 -7 -7 -5 -5 -5 -5 -5 -4 -4 -4 -4 -3 -3 -3 -2 -2 -2 ------------- Run | Yrd Mat Min Exi Min Mat Fac Sto Rec Scr Fac Ext Cet Arc Hub Fac Upp Upp War Pro Res Qua Res Tes Sec Turns Passed 26106 | 191 527 1010 414 597 1662 878 416 1540 5044 1182 1815 421 563 298 317 1981 2106 1296 815 519 1274 1009 158 73 Spaces Moved 15268 | 87 306 580 256 362 700 381 166 870 3551 858 897 182 262 129 154 1001 711 1107 655 402 815 427 283 126 Core 585 | 6 . . . . . . . . . . . . . . . . 238 168 . . . 7 139 27 Treads 5723 | 81 306 580 256 362 700 381 166 870 1501 . 4 . . . . . 357 . . . . 159 . . Legs 4522 | . . . . . . . . . . . 175 182 262 129 154 1001 115 392 655 402 815 240 . . Wheels 3623 | . . . . . . . . . 2050 855 718 . . . . . . . . . . . . . Hover 650 | . . . . . . . . . . 3 . . . . . . 1 547 . . . . . 99 Flight 165 | . . . . . . . . . . . . . . . . . . . . . . 21 144 . Fastest Speed 40 | 50 160 160 160 160 160 163 163 163 97 97 95 190 190 120 120 190 50 50 108 107 105 40 40 40 Average Speed 143 | 153 160 160 160 160 170 175 168 163 130 108 133 190 190 178 163 190 256 85 108 110 110 176 45 46 Slowest Speed 1000 | 160 160 160 160 160 240 245 240 243 245 157 260 190 260 190 190 260 1000 200 108 182 120 320 100 100 Overloaded Moves . | . . . . . . . . . . . . . . . . . . . . . . . . . Propulsion Burnouts . | . . . . . . . . . . . . . . . . . . . . . . . . . Robots Hopped 4 | . . . . . . . . . . . . . . . . . . . . . . 2 2 . Cave-ins Triggered . | . . . . . . . . . . . . . . . . . . . . . . . . . Exploration Rate (%) 53 | 5 46 87 50 78 60 14 34 99 93 19 87 64 99 9 4 93 85 86 78 15 76 15 33 13 Regions Visited 24 Branch Regions 17 Pre-discovered Areas 11 | . 2 . 1 . 3 . . 4 . . . . . . . 1 . . . . . . . . Known Exits Taken 14 | . . . . 1 1 1 . . . 1 . . . 1 1 1 1 1 1 1 1 1 1 . Unknown Exits Taken 10 | 1 1 1 1 . . . 1 1 1 . 1 1 1 . . . . . . . . . . . Scrap Searched 20 | . . 1 . 2 . . . . 7 . . . . . . 5 3 . 2 . . . . . Spaces Dug 10 | . 1 . . . . . . . . 1 . . 2 . . 1 1 . . . 4 . . . Terrain Destroyed 349 | . 24 . . . 67 45 12 . . 1 . . 2 . . 1 1 10 . . 89 85 12 . Melee 8 | . . . . . . . . . . 1 . . 2 . . 1 1 . . . 3 . . . Projectile 73 | . 1 . . . . . . . . . . . . . . . . . . . 16 56 . . AOE 267 | . 23 . . . 67 45 12 . . . . . . . . . . 10 . . 69 29 12 . Terrain Rammed . | . . . . . . . . . . . . . . . . . . . . . . . . . Walls Destroyed . | . . . . . . . . . . . . . . . . . . . . . . . . . Machines Disabled . | . . . . . . . . . . . . . . . . . . . . . . . . . Actions | -11 -10 -10 -10 -9 -8 -7 -7 -7 -7 -5 -5 -5 -5 -5 -4 -4 -4 -4 -3 -3 -3 -2 -2 -2 --------- Run | Yrd Mat Min Exi Min Mat Fac Sto Rec Scr Fac Ext Cet Arc Hub Fac Upp Upp War Pro Res Qua Res Tes Sec Total 18510 | 114 331 619 263 379 1026 518 271 976 3971 1037 1358 253 315 168 212 1063 933 1440 734 455 1068 558 309 139 Wait 1478 | . . 7 . . 149 50 64 42 320 68 178 30 16 10 26 34 124 208 35 14 80 15 5 3 Move 15236 | 86 305 579 255 361 699 380 165 869 3550 857 896 181 261 128 153 1000 710 1106 654 401 814 422 278 126 Hop 4 | . . . . . . . . . . . . . . . . . . . . . . 2 2 . Pick Up 180 | 5 4 7 2 3 18 5 1 3 34 9 11 8 6 . 4 1 9 15 4 4 14 11 2 . Fast Attach 215 | 7 1 . 2 . 12 5 7 2 10 12 32 3 3 4 10 5 11 21 4 9 26 18 5 6 Attach 80 | . . . . . 5 2 3 1 3 6 11 . 3 . 3 4 8 4 1 2 12 8 4 . Detach 45 | . . . . . 2 . 2 4 3 4 4 1 2 . . 2 4 7 1 1 1 2 5 . Swap 128 | 1 7 1 . 5 15 10 2 6 4 11 16 5 1 2 . 1 1 10 11 1 11 6 1 . Drop 300 | . 4 1 4 8 31 11 5 3 42 18 31 13 7 3 9 3 13 26 6 7 30 18 5 2 Fire 344 | 15 10 21 . 2 93 55 21 6 . . 7 . . . . . 2 7 . . 47 56 2 . Melee 378 | . . . . . . . . 25 5 52 119 4 16 21 7 13 43 7 18 15 33 . . . Ram . | . . . . . . . . . . . . . . . . . . . . . . . . . Kick 1 | . . . . . . . . . . . 1 . . . . . . . . . . . . . Crush 8 | . . 3 . . 2 . 1 2 . . . . . . . . . . . . . . . . Escape Stasis 38 | . . . . . . . . . . . 36 . . . . . . . . . . . . 2 Rewire 66 | . . . . . . . . 13 . . 16 . . . . . 8 29 . . . . . . Trap . | . . . . . . . . . . . . . . . . . . . . . . . . . Miscellaneous 9 | . . . . . . . . . . . . 8 . . . . . . . 1 . . . . Route ------- -11/Scrapyard -10/Materials (discovered 2 exits: [*Mat] / [*Min]) -10/Mines (discovered 3 exits: [*Mat x2] / *Exi) -10/Exiles -9/Mines (discovered 2 exits: *Mat x2) -8/Materials (discovered 3 exits: *Fac x3) -7/Factory (discovered 3 exits: Fac x2 / *Sto) -7/Storage (discovered 2 exits: Fac / *Rec) -7/Recycling (discovered 2 exits: *Fac / *Scr) -7/Scraptown (discovered 2 exits: *Fac x2) -5/Factory (discovered 2 exits: *Upp / *Ext) -5/Extension (discovered 3 exits: *Fac x2 / *Cet) -5/Cetus (discovered 2 exits: *Fac / [*Arc]) -5/Archives (discovered 3 exits: *Fac / [*Hub x2]) -5/Hub_04(d) (discovered 2 exits: *Fac x2) -4/Factory (discovered 3 exits: Res x2 / *Upp) -4/Upper Caves -4/Upper Caves (discovered 2 exits: *Res / *War) -4/Warlord -3/Proximity Caves -3/Research (discovered 3 exits: Arm / *Qua x2) -3/Quarantine -2/Research -2/Testing -2/Section 7 History --------- Turn | Location | Event 20 | -11/Scrapyard | Discovered new exit (range 15) 192 | -11/Scrapyard | Entered Materials 305 | -10/Materials | Build established: Mutant 361 | -10/Materials | Discovered new exit (range 3) 569 | -10/Materials | Discovered new exit (range 16) 719 | -10/Materials | Entered Mines 951 | -10/Mines | Found a hidden stash of uninstalled traps 1048 | -10/Mines | Discovered new exit (range 8) 1211 | -10/Mines | Learned Materials terminal intel 1328 | -10/Mines | Deemed a non-threat by the Exiles lab entrance 1330 | -10/Mines | Discovered new exit (range 5) 1520 | -10/Mines | Discovered new exit (range 8) 1729 | -10/Mines | Entered Exiles 1753 | -10/Exiles | Discovered new exit (range 15) 1772 | -10/Exiles | Met 8R-AWN 1798 | -10/Exiles | Met EX-HEX 1868 | -10/Exiles | Learned location of Zion (-6) 1894 | -10/Exiles | Met EX-BIN 2011 | -10/Exiles | Met EX-DEC 2143 | -10/Exiles | Entered Mines 2187 | -9/Mines | Identified exit to Materials 2323 | -9/Mines | Discovered exit to Materials (range 15) 2331 | -9/Mines | Joined a pair of Derelicts in attacking an 0b10 outpost 2333 | -9/Mines | Assembled infested the area 2576 | -9/Mines | Found the Drone Emporium 2585 | -9/Mines | Found Prototype Device 2644 | -9/Mines | Build established: Scavenger-Mutant 2656 | -9/Mines | A weapon hastily lodged in a ceiling crevice suddenly fell to the ground 2740 | -9/Mines | Entered Materials 2740 | -8/Materials | Evolved 4 slots: Propulsion x1, Utility x2, Weapon x1 2741 | -8/Materials | Loaded intel: 12 terminal locations 2742 | -8/Materials | Identified Bomb Drone Bay 3354 | -8/Materials | Discovered new exit (range 3) 3562 | -8/Materials | Discovered new exit (range 15) 3676 | -8/Materials | Garrison activated, responded to threat 3709 | -8/Materials | Build established: Tank 3873 | -8/Materials | Learned Storage stockpile data 3951 | -8/Materials | Identified exit to Factory 4019 | -8/Materials | Learned location of 2 exits from Factory 4078 | -8/Materials | Learned location of Lower Caves (-6) 4125 | -8/Materials | Learned location of 1 exit from Storage 4161 | -8/Materials | Learned location of 1 exit from Lower Caves 4255 | -8/Materials | Central database locked down 4331 | -8/Materials | Learned location of Lower Caves (-6) 4340 | -8/Materials | First assault squad dispatched 4402 | -8/Materials | Entered Factory 4402 | -7/Factory | Evolved 2 slots: Utility x2 4403 | -7/Factory | Identified exit to Factory 4404 | -7/Factory | Identified exit to Storage 4686 | -7/Factory | Build established: Scavenger-Tank 5202 | -7/Factory | First assault squad dispatched 5280 | -7/Factory | Entered Storage 5425 | -7/Storage | Repaired Med. Reactive Plating 5466 | -7/Storage | Repaired Arm. Treads 5633 | -7/Storage | Met a pair of Derelict thieves 5691 | -7/Storage | Used back door to open Recycling access 5691 | -7/Storage | Discovered new exit (range 4) 5696 | -7/Storage | Entered Recycling 5696 | -7/Recycling | Accompanied by 2 allies 6515 | -7/Recycling | Discovered new exit (range 5) 6630 | -7/Recycling | Scanned before Scraplab entrance 7095 | -7/Recycling | Build established: Commander-Mutant 7191 | -7/Recycling | Entered Scraplab 7204 | -7/Recycling | Discovered new exit (range 3) 7236 | -7/Recycling | Entered Scraptown 7236 | -7/Scraptown | Accompanied by 11 allies 7236 | -7/Scraptown | System corruption cleaned by C-Scrubber 7341 | -7/Scraptown | Visited UFD Registry 7341 | -7/Scraptown | Registered with UFD as "Pyroplate" 7398 | -7/Scraptown | Visited Spacefarers 7486 | -7/Scraptown | Visited Scrapoid Research Area 7530 | -7/Scraptown | Visited Science Testing Area 7548 | -7/Scraptown | Visited Cyclists 7559 | -7/Scraptown | Entered Cyclist Reading Room 7590 | -7/Scraptown | Heard Great Nut preacher, LISTEN AND RECITE! 7651 | -7/Scraptown | Discovered new exit (range 11) 8227 | -7/Scraptown | Visited IN-MT5's Study 8263 | -7/Scraptown | Visited Awakened 8297 | -7/Scraptown | Visited Assassins FH 8420 | -7/Scraptown | Visited Research Penetration Think Tank 8534 | -7/Scraptown | Visited Botcube Research 8546 | -7/Scraptown | Found Lrg. Botcube 8573 | -7/Scraptown | Visited LU-1G1's Boring Crew 8673 | -7/Scraptown | Discovered new exit (range 3) 8806 | -7/Scraptown | Visited Sword Containment 8836 | -7/Scraptown | Visited Derelict Rescue Squad 9207 | -7/Scraptown | Visited Science Guys 9270 | -7/Scraptown | Visited DA-N13 Charitable Foundation 9278 | -7/Scraptown | Found DCF Scrap (28 items) 9317 | -7/Scraptown | Visited A0-MCA Data Center 9327 | -7/Scraptown | Given a B rating by A0-MCA 9334 | -7/Scraptown | Found A0-MCA's Component Scanner 10238 | -7/Scraptown | Found Scrap Suit 10247 | -7/Scraptown | Found Scrap Suit 10903 | -7/Scraptown | Lrg. Botcube activated 10939 | -7/Scraptown | Lrg. Botcube completed mutation into treaded form, armed with 4 guns. 12280 | -7/Scraptown | Entered Factory 12280 | -5/Factory | Accompanied by 12 allies 12280 | -5/Factory | Evolved 4 slots: Power x1, Propulsion x1, Utility x2 12692 | -5/Factory | P-70 Sage assimilated allied Gladiator 4a 13135 | -5/Factory | Repaired Arm. Huge Wheel 13141 | -5/Factory | Discovered new exit (range 7) 13147 | -5/Factory | Identified exit to Upper Caves 13230 | -5/Factory | Lost 3 allies 13450 | -5/Factory | Discovered new exit (range 6) 13457 | -5/Factory | Identified exit to Extension 13462 | -5/Factory | Entered Extension 13462 | -5/Extension | Accompanied by 1 ally 13500 | -5/Extension | Build established: Scavenger-Mutant 13532 | -5/Extension | Rescued a captive Derelict 13533 | -5/Extension | Rescued a captive Derelict 13575 | -5/Extension | Rescued a captive Derelict 13576 | -5/Extension | Rescued a captive Derelict 13736 | -5/Extension | Lost 4 allies 13781 | -5/Extension | Rescued a captive Derelict 13782 | -5/Extension | Rescued a captive Derelict 14072 | -5/Extension | Spotted B-75 Beast 14087 | -5/Extension | Spotted B-75 Beast 14106 | -5/Extension | Allies destroyed B-75 Beast 14143 | -5/Extension | Allies destroyed B-75 Beast 14172 | -5/Extension | Lost 9 parts (2p2n4u1w) 14220 | -5/Extension | Rescued a captive Derelict 14354 | -5/Extension | Rescued A7 14433 | -5/Extension | Lost 3 parts (2n1u) 14458 | -5/Extension | Lost 3 allies 14615 | -5/Extension | Rescued a captive Derelict 14616 | -5/Extension | Rescued a captive Derelict 14833 | -5/Extension | Scrapoid reinforcements arrived 14909 | -5/Extension | Learned 4 Factory zone layouts 14962 | -5/Extension | First assault squad dispatched 14973 | -5/Extension | Learned location of 3 exits from Factory 14989 | -5/Extension | Core integrity fell below 50% 15012 | -5/Extension | Lost 3 allies 15025 | -5/Extension | Learned 2 Armory zone layouts 15038 | -5/Extension | Discovered new exit (range 10) 15040 | -5/Extension | Discovered new exit (range 6) 15043 | -5/Extension | Build established: Commander-Mutant 15100 | -5/Extension | Learned location of 2 exits from Upper Caves 15122 | -5/Extension | Learned location of 1 exit from Armory 15156 | -5/Extension | Learned Factory security intel 15198 | -5/Extension | Learned location of 2 exits from Upper Caves 15252 | -5/Extension | Identified exit to Factory 15273 | -5/Extension | Disrupted transfer network 15277 | -5/Extension | Entered Cetus 15277 | -5/Cetus | Accompanied by 7 allies (A7) 15282 | -5/Cetus | Acquired a Cetus Manufacturing Module code from A7 15305 | -5/Cetus | Lost 9 allies 15318 | -5/Cetus | Spotted Cetus Guard 15318 | -5/Cetus | Spotted Cetus Guard 15320 | -5/Cetus | Spotted Cetus Guard 15320 | -5/Cetus | Spotted Cetus Guard 15329 | -5/Cetus | Allies destroyed Cetus Guard 15334 | -5/Cetus | Allies destroyed Cetus Guard 15343 | -5/Cetus | Allies destroyed Cetus Guard 15349 | -5/Cetus | Allies destroyed Cetus Guard 15375 | -5/Cetus | Lost 3 allies 15465 | -5/Cetus | Started Cetus Manufacturing Module 15490 | -5/Cetus | Manufactured an Enhanced Grunt 15495 | -5/Cetus | Escorted A7 to Cetus Mainframe 15515 | -5/Cetus | Manufactured an Enhanced Grunt 15517 | -5/Cetus | Discovered new exit (range 15) 15540 | -5/Cetus | Manufactured an Enhanced Grunt 15553 | -5/Cetus | Spotted Cetus Guard 15553 | -5/Cetus | Spotted Cetus Guard 15563 | -5/Cetus | Spotted Cetus Guard 15565 | -5/Cetus | Manufactured an Enhanced Grunt 15565 | -5/Cetus | Spotted Cetus Guard 15565 | -5/Cetus | Allies destroyed Cetus Guard 15566 | -5/Cetus | Build established: Scavenger-Mutant 15567 | -5/Cetus | Allies destroyed Cetus Guard 15571 | -5/Cetus | Allies destroyed Cetus Guard 15573 | -5/Cetus | Allies destroyed Cetus Guard 15578 | -5/Cetus | Discovered exit to Factory (range 16) 15588 | -5/Cetus | Met Revision 17 15590 | -5/Cetus | Manufactured an Enhanced Grunt 15698 | -5/Cetus | Entered Archives 15698 | -5/Archives | Accompanied by 8 allies (A7) 15703 | -5/Archives | Received a hacking code to weaken MAIN.C 15804 | -5/Archives | Discovered exit to Factory (range 4) 15841 | -5/Archives | Met Zhirov 15847 | -5/Archives | Reinforcements dispatched to Archives 15875 | -5/Archives | Discovered new exit (range 13) 15892 | -5/Archives | Reinforcements dispatched to Archives 15912 | -5/Archives | Zhirov detonated Archives 15943 | -5/Archives | Lost 5 parts (1p2n1u1w) 15943 | -5/Archives | Lost 6 allies 16144 | -5/Archives | Discovered new exit (range 12) 16261 | -5/Archives | Entered Hub_04(d) 16261 | -5/Hub_04(d) | Accompanied by 1 ally 16286 | -5/Hub_04(d) | Discovered exit to Factory (range 5) 16286 | -5/Hub_04(d) | Discovered exit to Factory (range 11) 16473 | -5/Hub_04(d) | Garrison activated, responded to threat 16559 | -5/Hub_04(d) | Entered Factory 16559 | -4/Factory | Accompanied by 1 ally 16559 | -4/Factory | Evolved 2 slots: Propulsion x1, Utility x1 16560 | -4/Factory | Identified exit to Research 16560 | -4/Factory | Identified exit to Upper Caves 16589 | -4/Factory | Lost 3 parts (2p1u) 16690 | -4/Factory | Found Unknown Device 16690 | -4/Factory | Identified Quantum Capacitor 16876 | -4/Factory | Entered Upper Caves 16876 | -4/Upper Caves | Accompanied by 1 ally 16877 | -4/Upper Caves | Identified exit to Upper Caves 16906 | -4/Upper Caves | Found DCF Scrap (17 items) 17054 | -4/Upper Caves | Learned Research terminal intel 17182 | -4/Upper Caves | Learned Research stockpile data 17196 | -4/Upper Caves | Encountered a Warlord checkpoint 17532 | -4/Upper Caves | Lost 3 parts (1p1n1u) 18857 | -4/Upper Caves | Entered another Upper Caves area 18858 | -4/Upper Caves | Identified exit to Warlord 19190 | -4/Upper Caves | Lost 8 parts (1p6n1u) 20432 | -4/Upper Caves | Learned Research security intel 20511 | -4/Upper Caves | Attracted the attention of an 0b10 checkpoint 20580 | -4/Upper Caves | Learned Research emergency access door positions 20649 | -4/Upper Caves | Spotted B-86 Titan 20721 | -4/Upper Caves | Lost 6 parts (1p3n2u) 20730 | -4/Upper Caves | Lost 10 allies 20928 | -4/Upper Caves | Core integrity fell below 50% 20963 | -4/Upper Caves | Entered Warlord 20983 | -4/Warlord | System corruption cleaned by Quarantine Array 21059 | -4/Warlord | Build established: Hacker-Mutant 21372 | -4/Warlord | Warlord's base attacked by MAIN.C 21398 | -4/Warlord | Found Prototype Energy Gun 21398 | -4/Warlord | Identified Vortex Rifle 21403 | -4/Warlord | Found Prototype Energy Cannon 21403 | -4/Warlord | Identified Vortex Cannon 21407 | -4/Warlord | Found Vortex Cannon 21572 | -4/Warlord | Warlord forces counterattacked 21582 | -4/Warlord | Lost 9 allies 21673 | -4/Warlord | Lost 3 allies 21691 | -4/Warlord | Spotted Executioner 21691 | -4/Warlord | Spotted Executioner 21691 | -4/Warlord | Spotted Executioner 21711 | -4/Warlord | Found Prototype Processor 21711 | -4/Warlord | Identified Exp. Core Analyzer 21720 | -4/Warlord | Discovered new exit (range 9) 21734 | -4/Warlord | Found Exp. Core Analyzer 21737 | -4/Warlord | Lost 5 allies 21738 | -4/Warlord | Found Exp. Core Analyzer 21760 | -4/Warlord | Found Prototype Device 21760 | -4/Warlord | Identified Adv. Kinecellerator 21773 | -4/Warlord | Spotted Executioner 21774 | -4/Warlord | Spotted Striker 21836 | -4/Warlord | Core integrity fell below 20% 21860 | -4/Warlord | Lost 17 allies 21882 | -4/Warlord | Build established: Scavenger-Mutant 21996 | -4/Warlord | Spotted Striker 22047 | -4/Warlord | Warlord base infiltrated, sounded retreat 22055 | -4/Warlord | Spotted Executioner 22070 | -4/Warlord | Spotted Executioner 22105 | -4/Warlord | Lost 7 allies 22111 | -4/Warlord | Spotted Executioner 22169 | -4/Warlord | Rebuked by Warlord 22188 | -4/Warlord | Found Prototype Device 22227 | -4/Warlord | Identified exit to Proximity Caves 22259 | -4/Warlord | Entered Proximity Caves 22310 | -3/Proximity Caves | Identified Exp. Shock Absorption System 23025 | -3/Proximity Caves | Discovered exit to Research (range 12) 23074 | -3/Proximity Caves | Entered Research 23074 | -3/Research | Evolved 2 slots: Utility x2 23078 | -3/Research | Loaded intel: 22 terminal locations 23274 | -3/Research | Revision forces began assault on 0b10 23289 | -3/Research | Met up with Revision 17++ 23339 | -3/Research | Lost 3 parts (2n1w) 23369 | -3/Research | Identified exit to Armory 23369 | -3/Research | Identified exit to Quarantine 23590 | -3/Research | Found Fusion Bomb Launcher 23593 | -3/Research | Entered Quarantine 23665 | -3/Quarantine | Found Alien Artifact 23665 | -3/Quarantine | Identified Phase Armor 23741 | -3/Quarantine | Repaired Rnf. Fission Core 23838 | -3/Quarantine | Cryocooling Duct disabled 23853 | -3/Quarantine | Ambient heat levels rising (+20) 23853 | -3/Quarantine | Non-combat units ordered to evacuate 24002 | -3/Quarantine | Lost 4 parts (1n2u1w) 24170 | -3/Quarantine | Cryocooling Duct disabled 24184 | -3/Quarantine | Cryocooling Duct disabled 24185 | -3/Quarantine | Ambient heat levels rising (+20) 24185 | -3/Quarantine | Combat units ordered to evacuate 24199 | -3/Quarantine | Ambient heat levels rising (+20) 24285 | -3/Quarantine | Quarantine Guard activated 24311 | -3/Quarantine | Spotted Quarantine Guard 24410 | -3/Quarantine | Spotted Quarantine Guard 24430 | -3/Quarantine | Destroyed Quarantine Guard 24473 | -3/Quarantine | Found Prototype Device 24473 | -3/Quarantine | Identified Exp. Thermal Shield 24608 | -3/Quarantine | Found Alien Artifact 24615 | -3/Quarantine | Spotted Quarantine Guard 24629 | -3/Quarantine | Build established: Scavenger-Skirmisher 24633 | -3/Quarantine | Destroyed Quarantine Guard 24641 | -3/Quarantine | Spotted Quarantine Guard 24700 | -3/Quarantine | Destroyed Quarantine Guard 24711 | -3/Quarantine | Spotted Quarantine Guard 24767 | -3/Quarantine | Spotted Quarantine Guard 24796 | -3/Quarantine | Destroyed Quarantine Guard 24837 | -3/Quarantine | Lost 11 parts (2p2n4u3w) 24843 | -3/Quarantine | Spotted Quarantine Guard 24849 | -3/Quarantine | Spotted Quarantine Guard 24852 | -3/Quarantine | Discovered new exit (range 12) 24866 | -3/Quarantine | Identified exit to Research 24867 | -3/Quarantine | Core integrity fell below 50% 24867 | -3/Quarantine | Entered Research 24867 | -2/Research | Evolved 2 slots: Utility x2 24868 | -2/Research | Identified exit to Testing 25148 | -2/Research | Lost 5 parts (2n3u) 25164 | -2/Research | Build established: Scavenger-Gunner 25652 | -2/Research | First assault squad dispatched 25824 | -2/Research | Spotted B-90 Cyclops 25870 | -2/Research | Core integrity fell below 50% 25876 | -2/Research | Entered Testing 25891 | -2/Testing | Found Prototype Energy Cannon 25891 | -2/Testing | Identified Potential Cannon 25905 | -2/Testing | Lost 15 parts (3p4n6u2w) 25988 | -2/Testing | System corruption reached 10% 25997 | -2/Testing | Spotted Fortress 26007 | -2/Testing | Core integrity fell below 20% 26032 | -2/Testing | Discovered new exit (range 6) 26034 | -2/Testing | Identified exit to Section 7 26034 | -2/Testing | Entered Section 7 26097 | -2/Section 7 | Spotted S7 Guard 26102 | -2/Section 7 | Found Prototype Slashing Weapon 26102 | -2/Section 7 | Identified Centrium Greatsword 26107 | -2/Section 7 | Destroyed by P-80 Master with Gamma Rifle Last Messages --------------- 26061_ Acquired Cld. Gravmag System. 26069_ Exp. Thermal Shield destroyed. 26072_ Acquired Mic. Antimatter Reactor. 26075_ Acquired Prototype Flight Unit. 26075_ Identified Electron Diverter. 26083_ Linear Gravjet destroyed. 26085_ Dropped Mic. Antimatter Reactor. 26085_ R-10 Processor collects Mic. Antimatter Reactor. 26094_ W-44 Eye sends out distress signal. 26102_ Acquired Prototype Slashing Weapon. 26102_ Identified Centrium Greatsword. 26103_ Dropped Mic. Antimatter Reactor. 26105_ Triggered Stasis Trap. 26105_ A bubble of rippling energy engulfs the area. 26105_ Field strength at 93. 26106_ Field strength at 86. 26107_ Field strength at 79. 26107_ Terminal disabled. 26107_ Critical hit (Meltdown: +280). Map ----- +----------------------------------------------------+ | | | | | | | | | ?????????????????????????????????????????????????? | | ?????????????????????????????????????????????????? | | ?????????????????????????????????????????????????? | | ?????????????????????????????????????????????????? | | ?????????????????????????????????????????????????? | | ?????????????????????????????????????????????????? | | ?????????????????????????????????????????????????? | | ?????????????????????????????????????????????????? | | ?????????????????????????????????????????????????? | | ?????????????????????????????????????????????????? | | ?????????????????????????????????????????????????? | | ?????????????????????????????????????????????????? | | ?????????????????????????????????????????????????? | | ????????????????????????????????????##???????????? | | ??????????????????????????????????? #???????????? | | ?????????????????????????????????? ###?????????? | | ??????????????????##########+#### ?????????? | | ??????????????????# """T""" ?????????? | | ??????????????????+ """ " " #???????????? | | ??????????????????# #???????????? | | ??????????????????# ????????????? | | ??????????????????# @ != #??????????????????? | | ??????????????????# != #??????????????????? | | ###############+### /// != #??????????????????? | | /// #??????????????????? | | w */ #??????????????????? | | Y #??????????????????? | | kp #??????????????????? | | ########+######+######+########??????????????????? | | ???# #?? ???????????????????????????????? | | ???# # ?????????????????????????????? | | ??# # ""#????????????????????????????? | | ??# # """ "#????????????????????????????? | | ?# #""""!"" "#????????????????????????????? | | ## #"""""""""#????????????????????????????? | | ## ###########????????????????????????????? | | ## #??????????????????????????????????????? | | ## #??????????????????????????????????????? | | ## #??????????????????????????????????????? | | ## ! #??????????????????????????????????????? | | ## #??????????????????????????????????????? | | ## #??????????????????????????????????????? | | ##/######??????????????????????????????????????? | | #???????????????????????????????????????????? | | #???????????????????????????????????????????? | | #???????????????????????????????????????????? | +----------------------------------------------------+ Best States ------------- Heat Dissipation 163 Energy Generation 49 Energy Capacity 850 Matter Stores 536 Matter Capacity 550 Sight Range 16 Robot Scan Range 16 Terrain Scan Density 10 Jamming Range 14 Additional Mass Support 9 Base Temperature (-) 200 Armor Coverage 600 Resistance: KI 30 Resistance: TH 30 Resistance: EX 75 Resistance: EM 25 Weapon Shielding 33 Melee Speed Boost 20 Phase Shifting 15 Evasion (%) 70 Targeting Accuracy 8 Melee Accuracy 8 Target Analysis 8 Core Analysis 12 Recoil Reduction 4 Kinecelleration 40 Offensive Hacking 26 Defensive Hacking 14 Trap Extractor Capacity 8 Item Schematics ----------------- Enh. Autogun | -8/Materials | Scanalyzed Graphene Brace | -8/Materials | Scanalyzed Hvy. EM Shotgun | -8/Materials | Scanalyzed Com. Matter Pod | -8/Materials | Scanalyzed Robot Schematics ------------------ None Fabricated ------------ Nothing Alien Tech Used ----------------- Phase Armor Achievements -------------- Assassin Challenges ------------ None Game ------ Seed VortexMatterBoregun Manual? 0 Play Time 03:42:22 Cumulative 409.0 hours Start 2024.07.30 @ 15:27:39 End 2024.07.31 @ 02:05:12 Sessions 3 Manual Loads 0 Difficulty Rogue Special Mode None Game No. 270 Rogue 246 Adventurer 6 Explorer 18 Win Type - Total 31 Types 21/0/5/2/0/1/1/1/0 Lore% 86 Gallery% 92 Achievement% 80 Wizard Run 0 Options --------- Layout 1 ASCII 0 Keyboard 0 Movement Numpad Keybinds 0 Fullscreen 1 Font 16/TamsynBold Map View 55x38 Zoom Use 0% Tactical HUD 1 Map Filters NONE Filters NONE Steam 1 RUN: 155b666a-9630-487c-83d0-e5205169e184